bitfinex/quotes_SOLUSD_20220227
["timestamp","ask_amount","ask_price","bid_price","bid_amount"]
[1645970717627,6.0,89.898,89.791,111.8]
[1645970717929,27.341,89.929,89.792,0.25]
[1645970717930,6.0,89.916,89.792,0.25]
[1645970718128,7.75980649,89.928,89.793,111.8]
[1645970718328,7.75980649,89.928,89.794,0.25]
[1645970718531,10.35645301,89.927,89.796,31.59859135]
[1645970718728,7.80572367,89.926,89.797,112.05]
[1645970719133,7.80572367,89.926,89.798,2.74678921]
[1645970719331,7.80572367,89.926,89.799,0.25]
[1645970719531,7.80572367,89.926,89.821,111.8]
[1645970719731,2.74678921,89.925,89.822,0.25]
[1645970719932,6.0,89.924,89.822,2.99678921]
[1645970720333,1.80572367,89.926,89.823,2.74678921]
[1645970720535,10.54905439,89.942,89.831,111.8]
[1645970720734,2.74678921,89.949,89.832,0.25]
[1645970720933,2.74678921,89.949,89.833,111.8]
[1645970721135,2.74678921,89.949,89.835,111.8]
[1645970721335,2.74678921,89.949,89.837,111.8]
[1645970721654,2.74678921,89.949,89.841,111.8]
[1645970721833,2.74678921,89.949,89.842,0.25]
[1645970722133,1.50641848,89.974,89.861,111.8]
[1645970722333,1.50641848,89.974,89.862,0.25]
[1645970722734,8.74678921,89.973,89.843,2.74678921]
[1645970722934,16.6933,89.97,89.85,16.6933]
[1645970723133,7.87994967,89.969,89.851,0.25]
[1645970723336,24.57923392,89.969,89.851,0.25]
[1645970723533,1.52211793,89.968,89.841,47.7172]
[1645970723734,113.77122864,89.966,89.841,47.7172]
[1645970723934,1.49963291,89.963,89.841,23.8035]
[1645970724136,113.39326416,89.949,89.826,23.8119]
[1645970724333,55.6666,89.96,89.826,23.8119]
[1645970724334,111.8,89.947,89.826,23.8119]
[1645970724534,113.54613257,89.945,89.826,23.8119]
[1645970724735,111.8,89.943,89.826,23.8119]
[1645970724935,12.267087,89.944,89.801,24.3309]
[1645970724936,1.62292922,89.94,89.801,24.3309]
[1645970725136,111.8,89.938,89.801,24.3309]
[1645970725336,2.03649083,89.928,89.801,24.3309]
[1645970725535,1.93155778,89.925,89.801,24.3309]
[1645970725736,1.6273075,89.922,89.802,35.02226403]
[1645970725937,1.88813076,89.919,89.802,35.02226403]
[1645970726141,111.8,89.917,89.802,35.02226403]
[1645970726337,111.8,89.915,89.802,35.02226403]
[1645970726538,111.8,89.909,89.802,35.02226403]
[1645970726739,16.7047,89.91,89.802,35.02226403]
[1645970726740,1.62732174,89.906,89.802,35.02226403]
[1645970726939,1.91540381,89.903,89.802,35.02226403]
[1645970727137,1.61007516,89.9,89.802,35.02226403]
[1645970727437,111.8,89.898,89.802,35.02226403]
[1645970727637,7.56229352,89.897,89.802,35.02226403]
[1645970727837,4.30908273,89.897,89.802,35.02226403]
[1645970728036,6.0,89.896,89.802,35.02226403]
[1645970728238,8.74678921,89.896,89.802,35.02226403]
[1645970728436,2.74678921,89.895,89.802,35.02226403]
[1645970728637,6.0,89.894,89.802,35.02226403]
[1645970729040,2.74678921,89.893,89.802,35.02226403]
[1645970729240,6.0,89.892,89.802,35.02226403]
[1645970729438,7.98710696,89.892,89.802,35.02226403]
[1645970729638,2.74678921,89.891,89.802,35.02226403]
[1645970729842,6.0,89.89,89.802,35.02226403]
[1645970730439,6.0,89.898,89.802,35.02226403]
[1645970731139,2.74678921,89.897,89.802,35.02226403]
[1645970731340,16.7081,89.89,89.802,35.02226403]
[1645970731638,7.8054992,89.889,89.802,35.02226403]
[1645970731841,10.55228841,89.889,89.802,35.02226403]
[1645970732638,2.74678921,89.888,89.802,35.02226403]
[1645970732837,111.8,89.879,89.802,35.02226403]
[1645970733038,1.63470295,89.876,89.746,47.6532]
[1645970733239,6.0,89.875,89.767,0.25]
[1645970733638,8.74678921,89.875,89.767,0.25]
[1645970733838,2.74678921,89.874,89.767,0.25]
[1645970734038,6.0,89.873,89.767,31.34200401]
[1645970734338,6.0,89.873,89.771,111.8]
[1645970734541,6.0,89.873,89.772,0.25]
[1645970734838,0.25,89.872,89.772,0.25]
[1645970735042,6.0,89.878,89.772,0.25]
[1645970735238,8.74678921,89.878,89.772,0.25]
[1645970735437,114.54678921,89.877,89.772,0.25]
[1645970735638,1.58414863,89.874,89.771,0.25]
[1645970735839,6.0,89.873,89.771,0.25]
[1645970736038,8.74678921,89.873,89.771,0.25]
[1645970736441,111.8,89.869,89.767,31.09200401]
[1645970736666,1.79168738,89.868,89.768,0.25]
[1645970736841,111.8,89.866,89.768,0.25]
[1645970737043,111.8,89.864,89.767,31.09200401]
[1645970737244,111.8,89.862,89.767,31.09200401]
[1645970737440,111.8,89.86,89.767,31.09200401]
[1645970737641,111.8,89.858,89.767,31.09200401]
[1645970737843,16.7173,89.84,89.767,31.09200401]
[1645970738042,7.60234264,89.839,89.767,31.09200401]
[1645970738240,10.34913185,89.839,89.73,16.7156]
[1645970738442,112.05,89.838,89.714,16.9722]
[1645970738742,112.05,89.838,89.689,23.4275]
[1645970738743,16.7192,89.83,89.69,16.7231]
[1645970738941,2.01152721,89.828,89.69,16.7231]
[1645970739141,1.89783065,89.825,89.691,33.0246669]
[1645970739340,1.9073344,89.822,89.691,33.0246669]
[1645970739543,1.91635145,89.819,89.691,33.0246669]
[1645970739744,1.51138776,89.816,89.691,33.0246669]
[1645970739942,1.89840256,89.799,89.691,33.0246669]
[1645970740143,6.0,89.798,89.691,33.0246669]
[1645970740341,6.0,89.798,89.692,0.25]
[1645970741943,2.74678921,89.797,89.692,0.25]
[1645970742146,2.74678921,89.797,89.694,111.8]
[1645970742445,2.74678921,89.812,89.696,181.49038791]
[1645970742643,2.03712234,89.837,89.698,111.8]
[1645970742844,0.25,89.836,89.699,2.97059699]
[1645970743046,0.25,89.836,89.7,111.8]
[1645970743245,0.25,89.836,89.702,111.8]
[1645970743445,0.25,89.836,89.74,16.7139]
[1645970743645,8.19559205,89.836,89.741,25.90211146]
[1645970744666,8.19559205,89.836,89.741,137.70211146]
[1645970744870,8.19559205,89.836,89.741,25.90211146]
[1645970745070,7.94559205,89.836,89.751,111.8]
[1645970745268,22.7659,89.846,89.752,0.25]
[1645970745467,7.87097177,89.845,89.752,0.25]
[1645970745867,6.0,89.845,89.752,0.25]
[1645970746067,6.0,89.862,89.752,0.25]
[1645970746269,7.48714801,89.862,89.752,0.25]
[1645970746467,7.48714801,89.862,89.77,16.7093]
[1645970746468,6.0,89.862,89.77,16.7093]
[1645970746668,6.0,89.862,89.771,33.05049822]
[1645970746870,2.74678921,89.861,89.771,32.80049822]
[1645970747069,6.0,89.86,89.771,32.80049822]
[1645970747269,0.25,89.859,89.771,32.80049822]
[1645970747469,2.99678921,89.859,89.771,32.80049822]
[1645970747672,6.0,89.858,89.771,32.80049822]
[1645970747968,8.74678921,89.858,89.771,32.80049822]
[1645970748169,1.89987016,89.857,89.771,32.80049822]
[1645970748369,6.0,89.856,89.771,32.80049822]
[1645970748569,111.8,89.855,89.75,16.7118]
[1645970748769,111.8,89.855,89.702,2.94303728]
[1645970748770,1.63437844,89.852,89.722,23.5377]
[1645970748970,1.54536497,89.85,89.722,23.5377]
[1645970749171,6.0,89.849,89.722,23.5377]
[1645970749569,8.74678921,89.849,89.729,29.67925543]
[1645970749770,10.6533593,89.849,89.729,29.67925543]
[1645970749970,4.58115361,89.848,89.73,112.05]
[1645970750170,6.0,89.847,89.73,0.25]
[1645970750375,10.56239772,89.847,89.73,6.25]
[1645970750570,8.74678921,89.847,89.73,22.9658]
[1645970750772,2.74678921,89.846,89.73,22.9658]
[1645970750970,6.0,89.845,89.73,16.9658]
[1645970751171,6.0,89.845,89.731,117.8]
[1645970751370,2.74678921,89.844,89.732,0.25]
[1645970751571,6.0,89.843,89.732,0.25]
[1645970751979,2.74678921,89.842,89.732,0.25]
[1645970752177,6.0,89.841,89.732,0.25]
[1645970752578,2.74678921,89.84,89.74,16.7139]
[1645970752883,6.0,89.839,89.741,0.25]
[1645970753082,6.0,89.839,89.741,112.05]
[1645970753283,10.75302924,89.839,89.741,112.05]
[1645970753483,8.74678921,89.839,89.741,112.05]
[1645970753683,6.0,89.839,89.741,112.05]
[1645970753885,6.0,89.858,89.741,112.05]
[1645970754284,8.74678921,89.858,89.741,0.25]
[1645970754485,0.25,89.857,89.751,139.1869341]
[1645970754684,0.25,89.857,89.752,0.25]
[1645970755083,6.0,89.864,89.752,0.25]
[1645970755284,2.74678921,89.857,89.752,0.25]
[1645970755488,6.0,89.856,89.752,0.25]
[1645970755885,2.74678921,89.855,89.752,6.25]
[1645970756084,111.8,89.853,89.751,27.3869341]
[1645970756291,111.8,89.851,89.751,27.3869341]
[1645970756585,6.0,89.85,89.751,27.3869341]
[1645970756785,8.74678921,89.85,89.751,27.3869341]
[1645970757185,2.74678921,89.849,89.751,27.3869341]
[1645970757386,6.0,89.848,89.751,27.3869341]
[1645970757587,111.8,89.847,89.751,27.3869341]
[1645970757787,111.8,89.845,89.74,16.7138]
[1645970757991,111.8,89.843,89.722,23.5377]
[1645970758188,9.50805521,89.842,89.722,23.5377]
[1645970758389,6.0,89.841,89.722,23.5377]
[1645970758589,8.74678921,89.841,89.722,23.5377]
[1645970758793,111.8,89.839,89.729,35.93570243]
[1645970758988,1.4942214,89.836,89.729,35.93570243]
[1645970759189,16.72,89.83,89.729,35.93570243]
[1645970759388,7.59304677,89.829,89.729,35.93570243]
[1645970759588,20.63468001,89.829,89.729,35.93570243]
[1645970759788,116.45163418,89.828,89.729,35.93570243]
[1645970759988,111.8,89.826,89.729,35.93570243]
[1645970760189,6.0,89.827,89.729,35.93570243]
[1645970760190,111.8,89.824,89.729,35.93570243]
[1645970760401,16.7222,89.82,89.729,35.93570243]
[1645970760593,7.97382498,89.819,89.729,35.93570243]
[1645970761290,10.72061419,89.819,89.729,35.93570243]
[1645970762389,0.25,89.818,89.73,0.25]
[1645970763193,10.72061419,89.819,89.73,0.25]
[1645970764192,1.85507644,89.818,89.729,35.93570243]
[1645970764391,8.74678921,89.819,89.729,35.93570243]
[1645970764392,6.25,89.817,89.729,35.93570243]
[1645970764592,8.99678921,89.817,89.72,16.7182]
[1645970764794,1.63784151,89.815,89.7,16.7213]
[1645970764994,111.8,89.809,89.7,16.7213]
[1645970765194,1.79434175,89.806,89.7,16.7213]
[1645970765395,111.8,89.804,89.7,16.7213]
[1645970765594,1.75769146,89.801,89.701,30.12718387]
[1645970765796,6.0,89.8,89.701,30.12718387]
[1645970765994,8.74678921,89.8,89.701,30.12718387]
[1645970766395,2.74678921,89.799,89.701,30.12718387]
[1645970766596,2.74678921,89.799,89.691,46.1105]
[1645970766597,16.7262,89.79,89.691,46.1105]
[1645970766896,1.69088086,89.788,89.631,16.5877]
[1645970767094,4.458,89.787,89.631,16.5877]
[1645970767294,1.78047407,89.784,89.631,16.5877]
[1645970767493,111.8,89.782,89.632,36.16606635]
[1645970767698,16.7314,89.77,89.64,16.7322]
[1645970767894,7.54751809,89.781,89.632,81.74886635]
[1645970767895,122.258,89.769,89.632,81.74886635]
[1645970768095,1.77929297,89.768,89.632,81.74886635]
[1645970768294,111.8,89.766,89.632,81.74886635]
[1645970768497,111.8,89.764,89.632,81.74886635]
[1645970768694,111.8,89.762,89.632,81.74886635]
[1645970768894,6.0,89.763,89.632,81.74886635]
[1645970768895,111.8,89.76,89.632,81.74886635]
[1645970769097,10.458,89.761,89.632,81.74886635]
[1645970769098,111.8,89.758,89.632,81.74886635]
[1645970769297,111.8,89.756,89.632,81.74886635]
[1645970769496,111.8,89.739,89.632,81.74886635]
[1645970769697,111.8,89.737,89.632,81.74886635]
[1645970769996,6.0,89.738,89.632,81.74886635]
[1645970769997,1.75964315,89.734,89.632,81.74886635]
[1645970770197,1.62672412,89.731,89.632,81.74886635]
[1645970770426,1.67309307,89.728,89.632,81.74886635]
[1645970770601,1.70361969,89.718,89.632,81.74886635]
[1645970770800,1.93957185,89.715,89.632,81.74886635]
[1645970770999,1.7059872,89.712,89.632,81.74886635]
[1645970771198,1.95407153,89.709,89.632,81.74886635]
[1645970771399,111.8,89.707,89.632,36.16606635]
[1645970771601,111.8,89.705,89.632,36.16606635]
[1645970771798,6.0,89.704,89.632,36.16606635]
[1645970772099,6.0,89.704,89.623,16.7747]
[1645970772299,111.8,89.703,89.623,16.7747]
[1645970772498,111.8,89.701,89.623,16.7747]
[1645970772797,7.91796714,89.7,89.623,16.7747]
[1645970773000,6.0,89.7,89.624,31.8381086]
[1645970773198,0.25,89.699,89.624,31.8381086]
[1645970773398,2.99678921,89.699,89.624,31.8381086]
[1645970773600,6.0,89.698,89.595,49.1874]
[1645970773801,8.74678921,89.698,89.595,49.1874]
[1645970773997,119.00778921,89.697,89.595,49.1874]
[1645970774207,111.8,89.695,89.595,49.1874]
[1645970774398,111.8,89.693,89.541,76.97985417]
[1645970774698,1.6228972,89.692,89.542,108.28562646]
[1645970774901,1.77538629,89.689,89.542,108.28562646]
[1645970775198,111.8,89.659,89.542,108.28562646]
[1645970775400,111.8,89.657,89.542,108.28562646]
[1645970775600,111.8,89.655,89.542,102.28562646]
[1645970775799,12.46627925,89.654,89.542,102.28562646]
[1645970775999,1.6272055,89.653,89.542,102.28562646]
[1645970776206,6.0,89.652,89.542,102.28562646]
[1645970776700,6.37643222,89.651,89.542,102.28562646]
[1645970776903,6.25,89.65,89.542,102.28562646]
[1645970777100,4.464,89.649,89.542,102.28562646]
[1645970777300,6.0,89.648,89.542,102.28562646]
[1645970777601,1.93039547,89.629,89.542,102.28562646]
[1645970777799,6.0,89.628,89.542,102.28562646]
[1645970778000,6.0,89.628,89.542,105.03241567]
[1645970778401,0.25,89.65,89.542,105.03241567]
[1645970778804,0.25,89.65,89.543,0.25]
[1645970779001,0.25,89.65,89.542,102.28562646]
[1645970779200,0.25,89.65,89.543,0.25]
[1645970779402,2.74678921,89.649,89.543,0.25]
[1645970779603,6.0,89.648,89.55,16.7498]
[1645970780003,2.74678921,89.647,89.542,102.28562646]
[1645970780204,6.0,89.646,89.525,2.74678921]
[1645970780405,117.8,89.646,89.484,46.3386]
[1645970780603,111.8,89.644,89.484,46.3386]
[1645970780905,1.68296014,89.642,89.484,46.3386]
[1645970781102,16.7536,89.64,89.52,16.7554]
[1645970781306,6.0,89.641,89.521,28.11939672]
[1645970781307,7.8555954,89.639,89.521,28.11939672]
[1645970781705,111.8,89.638,89.522,0.25]
[1645970781901,6.0,89.637,89.522,0.25]
[1645970782302,8.74678921,89.637,89.522,0.25]
[1645970782502,16.755,89.63,89.522,0.25]
[1645970782702,7.73308687,89.629,89.522,0.25]
[1645970782902,0.25,89.628,89.522,0.25]
[1645970783104,2.99678921,89.628,89.522,0.25]
[1645970783302,6.0,89.627,89.522,0.25]
[1645970783503,16.7573,89.62,89.521,28.11939672]
[1645970783707,6.0,89.619,89.501,22.9044]
[1645970783906,7.95448265,89.619,89.501,22.9044]
[1645970784107,2.74678921,89.618,89.501,22.9044]
[1645970784309,6.0,89.617,89.501,22.9044]
[1645970784507,111.8,89.616,89.501,22.9044]
[1645970784706,111.8,89.614,89.502,26.53887827]
[1645970784904,111.8,89.612,89.502,26.53887827]
[1645970785106,111.8,89.61,89.502,26.53887827]
[1645970785305,111.8,89.608,89.503,0.25]
[1645970785505,16.7607,89.6,89.503,0.25]
[1645970785706,7.97034289,89.599,89.503,0.25]
[1645970786109,6.0,89.599,89.503,0.25]
[1645970786306,2.74678921,89.599,89.503,0.25]
[1645970786509,6.0,89.598,89.503,0.25]
[1645970787108,2.74678921,89.597,89.502,26.53887827]
[1645970787307,6.0,89.596,89.502,26.53887827]
[1645970787510,8.04632337,89.596,89.502,26.53887827]
[1645970787709,2.99678921,89.595,89.502,26.53887827]
[1645970788009,0.62185283,89.593,89.502,26.03887827]
[1645970788409,6.0,89.594,89.502,26.03887827]
[1645970788610,6.0,89.594,89.503,0.25]
[1645970788810,6.0,89.605,89.503,0.25]
[1645970789014,6.0,89.612,89.503,0.25]
[1645970789412,10.82851488,89.611,89.503,0.25]
[1645970789612,7.57828232,89.61,89.503,0.25]
[1645970790012,2.99678921,89.609,89.503,0.25]
[1645970790212,6.0,89.608,89.503,0.25]
[1645970790411,8.74678921,89.608,89.503,0.25]
[1645970790613,8.74678921,89.608,89.51,16.7572]
[1645970790815,0.25,89.609,89.511,0.25]
[1645970791015,6.0,89.62,89.511,5.14610977]
[1645970791219,1.94056446,89.642,89.513,111.8]
[1645970791418,6.0,89.641,89.515,111.8]
[1645970791620,11.54503121,89.64,89.517,111.8]
[1645970791817,2.00096649,89.639,89.518,8.58813335]
[1645970792019,6.0,89.638,89.518,8.58813335]
[1645970792418,0.25,89.637,89.518,8.58813335]
[1645970792618,0.25,89.637,89.53,16.753]
[1645970792818,0.25,89.637,89.531,40.89000214]
[1645970793039,0.25,89.637,89.532,7.24544916]
[1645970793244,6.0,89.664,89.533,6.25]
[1645970793441,6.0,89.664,89.533,0.25]
[1645970793442,0.25,89.663,89.533,0.25]
[1645970793640,2.99678921,89.663,89.533,0.25]
[1645970793841,15.82781054,89.662,89.533,0.25]
[1645970794041,1.50018793,89.661,89.533,0.25]
[1645970794244,6.0,89.66,89.54,16.7512]
[1645970794443,6.0,89.66,89.541,6.25]
[1645970794642,6.0,89.66,89.541,8.95460622]
[1645970794844,6.0,89.66,89.541,6.25]
[1645970795043,6.0,89.66,89.541,0.25]
[1645970795244,2.74678921,89.659,89.541,0.25]
[1645970795444,6.0,89.658,89.57,16.7447]
[1645970795643,12.4443543,89.657,89.571,30.99167694]
[1645970795846,7.72767387,89.656,89.571,30.99167694]
[1645970796146,10.72446308,89.656,89.571,30.99167694]
[1645970796347,2.74678921,89.655,89.571,30.99167694]
[1645970796545,6.0,89.654,89.571,30.99167694]
[1645970796946,8.74678921,89.654,89.571,30.99167694]
[1645970798149,6.0,89.654,89.571,30.99167694]
[1645970798547,6.0,89.654,89.572,0.25]
[1645970798949,8.74678921,89.654,89.572,0.25]
[1645970799150,8.74678921,89.654,89.522,26.01022575]
[1645970799454,8.74678921,89.654,89.522,23.8559]
[1645970799652,1.6560056,89.652,89.522,40.7817]
[1645970799851,1.63302821,89.649,89.522,40.7817]
[1645970800052,1.48603158,89.646,89.522,40.7817]
[1645970800254,111.8,89.644,89.523,35.41193798]
[1645970800454,2.56606388,89.641,89.523,35.41193798]
[1645970800653,2.03825521,89.638,89.523,35.41193798]
[1645970800851,1.61377419,89.629,89.523,35.41193798]
[1645970801254,8.74678921,89.628,89.523,35.41193798]
[1645970801458,11.18153036,89.627,89.523,35.41193798]
[1645970801654,119.44206543,89.626,89.523,35.41193798]
[1645970801854,1.62478047,89.625,89.523,35.41193798]
[1645970802057,111.8,89.619,89.523,35.41193798]
[1645970802256,111.8,89.617,89.523,35.41193798]
[1645970802454,111.8,89.615,89.523,35.41193798]
[1645970802654,3.94461384,89.612,89.523,35.41193798]
[1645970802855,1.48681485,89.609,89.523,35.41193798]
[1645970803155,1.51101717,89.606,89.491,77.3034]
[1645970803358,111.8,89.604,89.491,77.3034]
[1645970803556,111.8,89.602,89.491,77.3034]
[1645970803756,16.7624,89.59,89.491,77.3034]
[1645970803956,6.0,89.589,89.491,77.3034]
[1645970804156,6.0,89.589,89.492,32.45995746]
[1645970804362,8.74678921,89.589,89.493,0.25]
[1645970804663,1.90407195,89.59,89.493,0.25]
[1645970804664,2.74678921,89.588,89.493,0.25]
[1645970804957,6.0,89.587,89.493,0.25]
[1645970805560,6.0,89.588,89.493,0.25]
[1645970806859,0.25,89.587,89.493,0.25]
[1645970807061,0.25,89.587,89.492,32.45995746]
[1645970807263,114.79678921,89.587,89.492,32.45995746]
[1645970807461,1.59254782,89.579,89.491,77.3034]
[1645970807763,111.8,89.577,89.486,48.4635]
[1645970807961,6.0,89.578,89.486,48.4635]
[1645970807962,111.8,89.575,89.486,48.4635]
[1645970808162,111.8,89.573,89.486,48.4635]
[1645970808363,16.7665,89.57,89.468,16.6637]
[1645970808572,119.75470357,89.569,89.487,31.22714572]
[1645970808763,1.98863422,89.568,89.487,31.22714572]
[1645970808962,111.8,89.566,89.451,46.5983]
[1645970809163,111.8,89.564,89.451,46.5983]
[1645970809373,111.8,89.562,89.451,46.5983]
[1645970809670,1.5636964,89.559,89.451,46.5983]
[1645970809872,10.09557107,89.557,89.429,27.9419375]
[1645970810070,1.80270737,89.555,89.429,27.9419375]
[1645970810270,1.57846495,89.552,89.428,24.2038]
[1645970810478,111.8,89.55,89.428,24.2038]
[1645970810670,111.8,89.55,89.415,16.9154]
[1645970810671,111.8,89.548,89.415,16.9154]
[1645970810871,111.8,89.546,89.399,47.709]
[1645970811070,1.75010827,89.543,89.399,47.709]
[1645970811272,4.7743465,89.519,89.4,31.82564623]
[1645970811472,6.0,89.518,89.411,111.8]
[1645970811714,111.8,89.517,89.427,2.74678921]
[1645970811903,8.74678921,89.518,89.406,16.6727]
[1645970811904,7.88658798,89.516,89.406,16.6727]
[1645970812308,16.7767,89.51,89.426,0.05890543]
[1645970812509,7.5384659,89.509,89.426,0.05890543]
[1645970813404,6.0,89.509,89.426,0.05890543]
[1645970813609,16.7786,89.5,89.426,0.05890543]
[1645970813808,18.10255407,89.499,89.426,0.05890543]
[1645970814007,1.74628282,89.498,89.426,0.05890543]
[1645970814208,6.0,89.497,89.426,0.05890543]
[1645970814608,0.25,89.496,89.426,0.05890543]
[1645970815409,0.25,89.496,89.411,5.80890543]
[1645970816415,0.25,89.496,89.422,26.90182887]
[1645970816912,0.25,89.496,89.403,2.17743487]
[1645970816913,7.70921252,89.498,89.386,26.42849922]
[1645970817311,111.8,89.497,89.4,22.7775]
[1645970817515,1.5942551,89.494,89.4,6.0]
[1645970817711,6.0,89.493,89.378,4.471]
[1645970817912,111.8,89.492,89.397,34.93293808]
[1645970818112,16.7806,89.49,89.397,34.93293808]
[1645970818313,7.83266302,89.489,89.399,47.459]
[1645970818515,7.83266302,89.489,89.401,111.8]
[1645970818714,0.25,89.489,89.401,111.8]
[1645970818916,6.25,89.498,89.402,2.20301082]
[1645970819114,7.91411763,89.498,89.399,47.459]
[1645970819313,7.91411763,89.498,89.4,6.0]
[1645970819522,7.91411763,89.498,89.399,47.459]
[1645970819713,114.54678921,89.497,89.399,47.459]
[1645970819915,111.8,89.495,89.399,47.459]
[1645970820216,6.25,89.496,89.353,23.064]
[1645970820217,16.781,89.49,89.364,17.0279]
[1645970820415,1.54402646,89.488,89.354,45.7426]
[1645970820620,118.05,89.487,89.372,55.74716086]
[1645970820818,111.8,89.485,89.372,55.74716086]
[1645970821020,1.99063691,89.482,89.372,23.7646]
[1645970821218,111.8,89.48,89.372,23.7646]
[1645970821418,6.0,89.484,89.372,23.7646]
[1645970821419,1.55606804,89.458,89.372,23.7646]
[1645970821619,1.51318828,89.455,89.372,23.7646]
[1645970821825,1.73560886,89.452,89.372,23.7646]
[1645970822120,6.25,89.451,89.373,26.20903375]
[1645970822529,6.25,89.451,89.372,23.7646]
[1645970822722,6.25,89.451,89.343,4.473]
[1645970822943,2.74678921,89.45,89.343,4.473]
[1645970823120,4.474,89.449,89.293,17.0803]
[1645970823322,118.05,89.448,89.294,46.8515]
[1645970823524,111.8,89.446,89.295,27.13984626]
[1645970823721,12.54040939,89.445,89.295,27.13984626]
[1645970823920,1.54262057,89.443,89.295,27.13984626]
[1645970824120,111.8,89.441,89.295,27.13984626]
[1645970824419,16.7983,89.41,89.295,26.88984626]
[1645970824620,114.93795795,89.408,89.295,26.88984626]
[1645970824818,4.63852315,89.408,89.295,26.88984626]
[1645970825019,6.0,89.407,89.295,26.88984626]
[1645970825220,6.0,89.407,89.296,27.56309998]
[1645970825422,7.50517479,89.407,89.296,27.56309998]
[1645970825619,7.50517479,89.407,89.3,16.797]
[1645970825620,7.4978444,89.407,89.3,16.797]
[1645970825820,2.74678921,89.406,89.3,16.797]
[1645970826021,6.0,89.405,89.301,6.0]
[1645970826320,6.0,89.405,89.295,51.70615703]
[1645970826321,1.58477428,89.447,89.302,0.25]
[1645970826522,2.74678921,89.435,89.301,6.25]
[1645970826724,6.0,89.434,89.301,0.25]
[1645970827024,6.0,89.434,89.296,6.0]
[1645970827025,27.34,89.433,89.302,24.81631077]
[1645970827224,1.79847834,89.429,89.303,6.25]
[1645970827428,6.0,89.428,89.303,28.44582724]
[1645970827624,6.0,89.428,89.304,24.81631077]
[1645970827828,8.74678921,89.428,89.305,6.25]
[1645970828226,8.74678921,89.428,89.306,22.9444]
[1645970828433,16.794,89.42,89.306,22.9444]
[1645970828626,16.794,89.42,89.294,22.9564]
[1645970828627,1.77586177,89.418,89.294,22.9564]
[1645970828927,111.8,89.416,89.266,70.146]
[1645970829233,1.6111896,89.413,89.266,70.146]
[1645970829427,111.8,89.387,89.267,29.75926298]
[1645970829628,111.8,89.385,89.267,29.75926298]
[1645970829827,2.10601456,89.384,89.267,29.75926298]
[1645970830027,4.478,89.383,89.231,16.4834]
[1645970830228,4.478,89.383,89.173,5.74]
[1645970830229,0.25,89.382,89.216,396.91193521]
[1645970830448,16.8038,89.38,89.216,396.91193521]
[1645970830651,6.67192426,89.379,89.216,396.91193521]
[1645970830848,6.0,89.378,89.218,114.72818164]
[1645970831052,6.25,89.378,89.222,111.8]
[1645970831254,6.25,89.378,89.223,6.0]
[1645970831450,16.8034,89.37,89.26,16.8029]
[1645970831648,7.98168366,89.369,89.261,32.58826755]
[1645970831851,1.98168366,89.369,89.262,6.25]
[1645970832048,0.25,89.369,89.262,6.25]
[1645970832250,0.25,89.369,89.262,8.99678921]
[1645970832457,0.25,89.369,89.263,2.74678921]
[1645970832749,0.25,89.369,89.264,0.25]
[1645970832949,1.81762145,89.379,89.27,16.8016]
[1645970833160,2.74678921,89.368,89.264,24.2238]
[1645970833349,111.8,89.366,89.264,24.2238]
[1645970833549,111.8,89.364,89.264,24.2238]
[1645970833752,8.0603831,89.363,89.264,24.2238]
[1645970833949,8.0603831,89.363,89.264,23.7238]
[1645970834148,6.25,89.363,89.264,23.7238]
[1645970834349,6.0,89.362,89.264,23.2238]
[1645970834551,0.25,89.361,89.264,23.2238]